[Event "1st Sales Oliveira Masters 2022"]
[Site "Sales Oliveira"]
[Date "2022.06.10"]
[Round "4.2"]
[White "Labussiere, Victor"]
[Black "Supi, Luis Paulo"]
[Result "0-1"]
[ECO "D36"]
[WhiteElo "2349"]
[BlackElo "2590"]
[Annotator "TA"]
[PlyCount "110"]
[EventDate "2022.05.30"]
[EventType "swiss"]
[EventCountry "BRA"]
[SourceTitle "playchess.com"]
[Source "ChessBase"]
[SourceQuality "1"]
[TimeControl "40/5400+30:1800+30"]

{[%evp 11,110,27,17,22,25,0,8,2,6,10,20,0,0,-9,0,-16,0,-28,0,0,-2,-6,0,-15,-8,-24,-2,-13,0,0,0,0,0,0,0,0,0,-69,-59,-61,-58,-58,-58,-64,-27,-37,0,0,0,0,0,0,40,12,53,40,44,27,42,8,8,0,0,0,12,-28,-31,-186,-174,-157,-112,-75,-99,-105,-83,-70,0,-117,0,-60,0,-102,-68,-100,-51,-67,-56,-48,-62,-61,-53,-108,-110,-85,-77,-114,-77,-191,-10,-29992,-29993]} 1. d4 {[%emt 0:01:57]} Nf6 {[%emt 0:00:21]} 2. c4 {[%emt 0:01:10]} e6 {[%emt 0:00:13]} 3. Nc3 {[%emt 0:00:04]} d5 {[%emt 0:00:07]} 4. cxd5 {[%emt 0:00:12]} exd5 {[%emt 0:00:07]} 5. Bg5 {[%emt 0:00:32]} c6 {[%emt 0:00:05]} 6. Qc2 {[%emt 0:00:42]} Be6 {[%emt 0:02:01] 6...h6 is the modern continuation.} 7. e3 {[%emt 0:00:34] D36: Queen's Gambit Declined: Exchange Variation: Main line (5 Bg5 c6 6 Qc2).} Nbd7 {[%emt 0:02:41]} 8. Bd3 {[%emt 0:05:01]} h6 {[%emt 0:00:30]} 9. Bh4 {[%emt 0:00:42] The position is equal.} g5 {[%emt 0:00:07]} 10. Bg3 {[%emt 0:00:13]} Nh5 {[%emt 0:00:02]} 11. Nge2 {[%emt 0:01:24]} Nxg3 {[%emt 0:07:08]} 12. hxg3 {[%emt 0:05:02] [#]} Nb6 $146 {[%emt 0:02:58]} ({Predecessor:} 12... Bd6 13. O-O-O Qf6 14. f3 Nb6 15. g4 O-O-O 16. Kb1 Kb8 17. Rde1 Rde8 18. Nc1 Bd7 {½-½ (73) Sethuraman,S (2638)-Tica,S (2398) Chess.com INT 2020}) 13. O-O-O {[%emt 0:12:21]} Qe7 {[%emt 0:08:42]} 14. Kb1 {[%emt 0:05:08]} Bg7 {[%emt 0:01:44]} 15. Na4 {[%emt 0:04:29]} Nxa4 {[%emt 0:01:32]} 16. Qxa4 {[%emt 0:00:06]} O-O {[%emt 0:03:11]} 17. Rc1 {[%emt 0:01:34]} Rfc8 {[%emt 0:08:59]} 18. Rhe1 {[%emt 0:06:56]} Qf6 {[%emt 0:02:51] Hoping for ...Bf5.} 19. f3 {[%emt 0:02:25]} c5 {[%emt 0:02:26]} 20. Ka1 $1 {[%emt 0:00:08]} a6 {[%emt 0:04:59][%cal Ba7a6,Ba6a5,Ba5a4][%mdl 32]} 21. Bb1 {[%emt 0:00:51]} b5 {[%emt 0:03:41][%cal Bb7b5,Bb5b4][%mdl 32]} 22. Qc2 {[%emt 0:00:14]} cxd4 {[%emt 0:01:33]} 23. Qh7+ {[%emt 0:01:47]} Kf8 {[%emt 0:00:02]} 24. exd4 {[%emt 0:05:41]} ({White should play} 24. Nxd4 $11 Rxc1 25. Rxc1) 24... a5 $15 {[%emt 0:01:59]} 25. Qd3 {[%emt 0:04:21]} Rc4 {[%emt 0:01:19]} (25... b4 {seems wilder.} 26. Qb5 Rcb8 27. Qc6 a4) 26. Qd2 {[%emt 0:00:55]} b4 {[%emt 0:06:45]} 27. g4 {[%emt 0:04:39]} Rb8 {[%emt 0:02:09]} 28. Bd3 {[%emt 0:01:38]} a4 {[%emt 0:04:56][%cal Oa4a3]} 29. Bxc4 {[%emt 0:34:14]} dxc4 {[%emt 0:00:21]} 30. a3 {[%emt 0:00:00]} bxa3 {[%emt 0:08:03]} 31. bxa3 {[%emt 0:00:00]} Kg8 {[%emt 0:03:01]} (31... Qe7 $5 {[%cal Re7a3]} 32. Rc3 Kg8 $15) 32. Rb1 {[%emt 0:00:00]} Re8 {[%emt 0:04:55]} 33. Qc3 {[%emt 0:00:00]} Qd8 {[%emt 0:04:10][%cal Oh6h5]} 34. Rb2 {[%emt 0:00:00]} Qd6 {[%emt 0:00:34]} 35. Qb4 {[%emt 0:00:00]} Qh2 {[%emt 0:01:48]} 36. Qxa4 {[%emt 0:00:00]} Rf8 {[%emt 0:00:42]} 37. Qb4 {[%emt 0:00:00]} Qxg2 {[%emt 0:03:27]} 38. Qc3 {[%emt 0:00:00][%cal Oe2f4]} (38. Nf4 $5 Qxf3 39. Nxe6 fxe6 40. Qxc4 $14) 38... Bd5 {[%emt 0:02:58][%mdl 1024] Black has compensation.} 39. Ng1 {[%emt 0:00:00]} (39. f4 $1 $15) 39... Qg3 $19 {[%emt 0:00:32][%cal Og7d4]} 40. Rd1 {[%emt 0:01:12]} Re8 {[%emt 0:02:07]} 41. a4 {[%emt 0:31:41]} Qf4 {[%emt 0:30:45] Black is more active.} 42. Re2 {[%emt 0:00:56] Inhibits Re3.} Rb8 {[%emt 0:00:45]} 43. Rb2 {[%emt 0:00:17]} Re8 {[%emt 0:00:39]} (43... Ra8 $15 44. a5 Re8) 44. Re2 $1 $17 {[%emt 0:00:08]} Rb8 {[%emt 0:02:33]} ({Black should try} 44... Rd8 $17 {And now ...Bc6 would win.} 45. a5 f5 46. gxf5 h5) 45. Rb2 $1 $15 {[%emt 0:00:02]} Re8 {[%emt 0:01:07] Strongly threatening ...Re3.} 46. Re2 {[%emt 0:00:07] Against Re3} Rd8 {[%emt 0:00:32] aiming for ...Bc6.} 47. a5 {[%emt 0:00:44]} Bc6 {[%emt 0:00:46] A strong pair of Bishops.} (47... f5 $17 48. gxf5 Qxf5) 48. Red2 {[%emt 0:02:55]} Ba4 {[%emt 0:00:19]} 49. Ne2 {[%emt 0:00:02]} Qd6 {[%emt 0:00:40]} 50. Rb1 {[%emt 0:00:21]} (50. Qxc4 $2 Bxd1 51. Rxd1 Qa3+ 52. Qa2 Qxf3 $19) 50... Bb3 {[%emt 0:00:16]} 51. Rxb3 {[%emt 0:00:28]} (51. Rbb2 $1 $15) 51... cxb3 $17 {[%emt 0:00:01]} 52. Qxb3 {[%emt 0:00:15]} Rb8 $40 {[%emt 0:00:02][%mdl 128] Prevents Qb6. Black wants a kill.} 53. Qc3 {[%emt 0:00:22]} ({Don't go for} 53. Qa2 $2 Qh2 54. Rb2 (54. Rd1 $2 Qf2 $19) 54... Bxd4 $1 {[%mdl 512]} 55. Nxd4 Qg1+ 56. Qb1 Qxd4 $19) 53... Qd7 {[%emt 0:00:55] ( -> ...Qa4+)} 54. Ra2 {[%emt 0:00:19] [#] Against Qa4} (54. Rb2 $17 {was the only chance.} Qa4+ 55. Kb1 Qd1+ 56. Ka2 Qa4+ 57. Kb1 Qd1+ 58. Ka2) 54... Qb5 $2 {[%emt 0:00:27]} (54... Qd5 $1 $19 {[%cal Oh6h5] White should prevent ...h5!} 55. Ra4 Qb7) 55. Qc2 $2 {[%emt 0:01:09][%mdl 8192] [#]} (55. Rb2 $11 Qa4+ 56. Kb1 Rxb2+ 57. Qxb2) 55... Bxd4+ $1 {[%emt 0:00:39][%mdl 512] Weighted Error Value: White=0.23 (precise) /Black=0.17 (very precise)} 0-1

[Event "1st Sales Oliveira Masters 2022"]
[Site "Sales Oliveira"]
[Date "2022.06.09"]
[Round "4.3"]
[White "Delgado Ramirez, Neuris"]
[Black "Diamant, Andre"]
[Result "1-0"]
[ECO "B47"]
[WhiteElo "2603"]
[BlackElo "2539"]
[Annotator "TA"]
[PlyCount "89"]
[EventDate "2022.05.30"]
[EventType "swiss"]
[EventCountry "BRA"]
[SourceTitle "playchess.com"]
[Source "ChessBase"]
[SourceQuality "1"]
[TimeControl "40/5400+30:1800+30"]

{[%evp 12,89,64,30,80,33,47,31,49,39,30,14,44,51,60,39,93,92,98,109,93,64,83,85,81,64,68,70,68,55,62,58,773,0,83,0,71,0,10,0,73,75,100,28,106,63,68,66,69,77,81,77,91,77,68,68,56,77,77,81,87,76,143,134,115,137,159,162,254,253,549,538,680,666,666,662,1044,951,833,703]} 1. e4 {[%emt 0:00:37]} c5 {[%emt 0:00:04]} 2. Nf3 {[%emt 0:00:06]} e6 {[%emt 0:00:03]} 3. d4 {[%emt 0:00:30]} cxd4 {[%emt 0:00:07]} 4. Nxd4 {[%emt 0:00:04]} Nc6 {[%emt 0:00:20]} 5. Nc3 {[%emt 0:00:35]} Qc7 {[%emt 0:00:05]} 6. g3 {[%emt 0:01:12]} d6 {[%emt 0:00:27]} 7. Bg2 {[%emt 0:01:58]} (7. Ndb5 $5 {[%cal Rb5c7]} Qb8 8. a4 $14) 7... Bd7 {[%emt 0:00:33] B47: Sicilian: Taimanov: 5 Nc3 Qc7 6 f4, 6 g3 and 6 Be2.} (7... Nxd4 $11 8. Qxd4 Nf6) 8. O-O {[%emt 0:01:12]} ({Better is} 8. Ndb5 $16 Qb8 9. Bf4) 8... Be7 {[%emt 0:00:15] is the legacy move (8...a6).} 9. Nb3 {[%emt 0:02:16]} Nf6 {[%emt 0:00:23] White is slightly better.} 10. a4 {[%emt 0:04:50]} O-O {[%emt 1:33:13]} 11. f4 {[%emt 0:03:00]} Rad8 {[%emt 0:00:00] [#]} 12. Be3 $146 {[%emt 0:00:30]} ({Predecessor:} 12. g4 d5 13. e5 Ne8 14. Nb5 Qb6+ 15. Kh1 f6 16. exf6 Nxf6 17. g5 Ne4 18. Qe2 a6 19. Bxe4 axb5 20. Bxh7+ {1-0 (20) Al Modiahki,M (2425)-Bagaturov,G (2535) Linares 1998}) 12... Bc8 {[%emt 0:00:00]} 13. Qe2 {[%emt 0:00:30]} d5 {[%emt 0:00:00]} (13... e5 $14) 14. e5 $16 {[%emt 0:00:30] [#] Hoping for Nb5.} Nd7 {[%emt 0:00:00]} 15. Nb5 {[%emt 0:00:30][%csl LRa7,LRc7]} Qb8 {[%emt 0:00:00]} 16. c3 $36 {[%emt 0:00:30][%mdl 2048] Black is under pressure. White is much more active. The black rooks are badly placed.} b6 {[%emt 0:00:00]} 17. N5d4 {[%emt 0:00:30]} Bb7 {[%emt 0:03:30]} 18. a5 {[%emt 0:13:21]} Nc5 {[%emt 0:00:00]} 19. Nxc6 {[%emt 0:00:30]} Bxc6 {[%emt 0:01:00]} 20. Nd4 {[%emt 0:01:32]} Bd7 {[%emt 0:00:00]} 21. Bf2 {[%emt 0:00:30]} Bc6 $2 {[%mdl 8192]} 22. Be3 $2 {[%emt 1:06:17]} (22. Nxc6 $18 {is the precise move to win.} Qc7 23. Nxd8) 22... Bd7 $1 {[%emt 0:01:30]} 23. Bf2 {[%emt 0:00:00]} (23. axb6 $16 axb6 24. Qc2) 23... Qc7 {[%emt 0:00:00]} (23... Bc6 $1 $11 {remains equal.}) 24. Nb5 {[%emt 0:00:00]} (24. axb6 $16 axb6 25. c4) 24... Qb8 $11 {[%emt 0:00:00]} 25. Nd4 {[%emt 0:00:00] Against Nb3} (25. a6 $11) 25... Qc7 $16 {[%emt 0:00:00]} 26. axb6 {[%emt 0:00:00]} axb6 {[%emt 0:00:00]} 27. Ra2 {[%emt 0:00:00]} (27. c4 $16) 27... f6 {[%emt 0:02:30]} (27... Qb7 $11) 28. exf6 {[%emt 0:00:00]} (28. Rfa1 {is more complex.} fxe5 29. Ra7 Qc8 30. fxe5 Ne4 31. Be3) 28... Bxf6 {[%emt 0:00:00]} 29. Nf3 {[%emt 0:00:00]} Be8 {[%emt 0:00:00]} 30. Bd4 {[%emt 0:00:00]} Bg6 {[%emt 0:00:00]} 31. Qe3 {[%emt 0:00:00]} Be4 {[%emt 0:00:00]} 32. Ne5 {[%emt 0:00:00]} Bxg2 {[%emt 0:00:00]} 33. Kxg2 {[%emt 0:00:00]} Ra8 {[%emt 0:00:00]} 34. Rfa1 {[%emt 0:00:00]} Rxa2 {[%emt 0:00:00]} 35. Rxa2 {[%emt 0:00:00]} Bxe5 {[%emt 0:00:00]} 36. Qxe5 {[%emt 0:00:00]} Qxe5 {[%emt 0:00:00]} ({Black should play} 36... Qf7) 37. Bxe5 {[%emt 0:00:07][%mdl 4096] Endgame KRB-KRN} Nd3 {[%emt 0:00:00]} 38. Bd4 {[%emt 0:00:30]} h6 {[%emt 0:00:00] [#]} 39. b4 $1 {[%emt 0:02:00]} ({Much less strong is} 39. Bxb6 g5 $16) 39... Rc8 {[%emt 0:04:17]} (39... b5 $142 40. Kh3 Rc8) 40. Kf3 $18 {[%emt 0:01:56] Threatens to win with Ke3.} ({Weaker is} 40. Bxb6 Rxc3 41. Ra8+ Kh7 $11) 40... g5 $2 {[%emt 0:00:42]} (40... e5) 41. Ke3 {[%emt 0:30:34] White is clearly winning.} Nc1 {[%emt 0:30:47]} 42. Ra3 {[%emt 0:00:14]} gxf4+ {[%emt 0:00:39]} 43. gxf4 {[%emt 0:00:04][%cal Bg3f4,Bf4e5,Be5e6][%mdl 32]} e5 {[%emt 0:00:55]} 44. fxe5 {[%emt 0:01:09]} Rf8 {[%emt 0:00:18]} 45. e6 {[%emt 0:00:15] Weighted Error Value: White=0.30/Black=0.32} 1-0

[Event "1st Sales Oliveira Masters 2022"]
[Site "Sales Oliveira"]
[Date "2022.06.09"]
[Round "4.4"]
[White "Gemy, Jose Daniel"]
[Black "Rodi, Luis Ernesto"]
[Result "1/2-1/2"]
[ECO "C54"]
[WhiteElo "2367"]
[BlackElo "2351"]
[Annotator "TA"]
[PlyCount "115"]
[EventDate "2022.05.30"]
[EventType "swiss"]
[EventCountry "BRA"]
[SourceTitle "playchess.com"]
[Source "ChessBase"]
[SourceQuality "1"]
[TimeControl "40/5400+30:1800+30"]

{[%evp 14,115,18,8,19,0,7,-13,16,16,16,17,19,22,43,49,48,16,20,14,34,35,52,40,34,44,71,64,72,7,65,14,12,0,179,166,221,229,211,224,256,236,247,243,236,197,196,200,233,212,282,261,278,281,314,263,292,312,296,287,487,427,473,472,806,804,806,799,777,760,833,147,147,147,147,147,147,147,29974,147,156,156,153,156,158,158,158,158,158,158,158,158,158,158,158,158,158,158,158,0,158,158,158,0]} 1. e4 {[%emt 0:00:06]} e5 {[%emt 0:00:09]} 2. Nf3 {[%emt 0:00:17]} Nc6 {[%emt 0:00:07]} 3. Bc4 {[%emt 0:00:07]} Bc5 {[%emt 0:00:05]} 4. c3 {[%emt 0:00:18]} Nf6 {[%emt 0:00:42]} 5. d3 {[%emt 0:01:04]} d6 {[%emt 0:00:12]} 6. O-O {[%emt 0:00:11]} a6 {[%emt 0:00:05]} 7. Bb3 {[%emt 0:00:08] The old main line.} Ba7 {[%emt 0:00:16]} 8. Nbd2 {[%emt 0:00:11]} h6 {[%emt 0:00:10] C54: Giuoco Piano: 4 c3 Nf6, main lines with 5 d4 and 5 d3.} 9. Nc4 {[%emt 0:03:59]} Ne7 {[%emt 0:01:47] [#]} 10. Be3 $146 {[%emt 0:05:47]} ({Predecessor:} 10. a4 b5 11. Ne3 O-O 12. Re1 Ng6 13. h3 c6 14. Nf1 Qc7 15. Ng3 c5 16. axb5 axb5 {½-½ (27) Telepnev,I (2505)-Korabliov,A (2423) ICCF email 2013}) 10... Bxe3 {[%emt 0:00:17] The position is equal.} (10... b5 $5 {[%cal Rb5c4]} 11. Ncd2 Bxe3 12. fxe3 O-O $11) 11. Nxe3 {[%emt 0:00:30]} Ng6 {[%emt 0:00:09] Against Nh4} 12. d4 {[%emt 0:02:05]} O-O {[%emt 0:01:19]} 13. dxe5 {[%emt 0:04:30]} Nxe5 {[%emt 0:01:51]} 14. Nxe5 {[%emt 0:08:06]} dxe5 {[%emt 0:00:16]} 15. Qf3 {[%emt 0:00:28]} Qe7 {[%emt 0:19:14]} 16. Rad1 {[%emt 0:02:45]} Be6 {[%emt 0:00:57]} 17. Qg3 {[%emt 0:11:29]} Rfe8 {[%emt 0:13:25]} (17... Bxb3 $2 18. Nf5 (18. axb3 Nxe4 19. Qg4 Nd6 $11) 18... Nh5 19. Nxe7+ $18) 18. Bxe6 {[%emt 0:17:04]} (18. Qxe5 Bxb3 19. Qxe7 Rxe7 $11) 18... Qxe6 {[%emt 0:01:45]} 19. Nf5 $40 {[%emt 0:00:41][%csl Gf5][%cal Rg3g7][%mdl 128] White attacks.} Nh5 {[%emt 0:00:17]} 20. Qg4 {[%emt 0:00:56] White is much more active.} Qg6 {[%emt 0:00:10]} 21. Qh4 {[%emt 0:07:10]} (21. Qf3 $16) 21... Nf6 {[%emt 0:05:01] Inhibits Rd7.} ({Black should play} 21... Nf4 $11 22. g3 Qg5) 22. Rd3 {[%emt 0:00:54]} ({Better is} 22. f3 $14) 22... Qg5 $11 {[%emt 0:00:33]} 23. Qh3 {[%emt 0:05:33] aiming for Rg3.} Nxe4 {[%emt 0:02:15]} (23... Kf8 $11 {and Black stays safe.}) 24. Re3 $1 $18 {[%emt 0:00:22]} Nd6 {[%emt 0:13:44] [#]} (24... g6 {was necessary.} 25. Nxh6+ Kg7) 25. Nxg7 $1 {[%emt 0:00:59][%mdl 512]} Kxg7 {[%emt 0:00:56]} (25... Qxg7 26. Rg3) 26. Rg3 {[%emt 0:00:07]} Re6 {[%emt 0:00:21]} 27. Re1 {[%emt 0:03:17]} Rae8 {[%emt 0:02:54]} 28. Rxg5+ {[%emt 0:05:13]} hxg5 {[%emt 0:00:07]} 29. Qg3 {[%emt 0:00:03]} f6 {[%emt 0:01:21]} 30. h4 {[%emt 0:01:55]} Nf5 {[%emt 0:03:28]} 31. Qf3 {[%emt 0:01:13]} Nxh4 {[%emt 0:00:07]} 32. Qxb7 {[%emt 0:00:04]} R8e7 {[%emt 0:00:05]} 33. Rd1 {[%emt 0:03:48]} e4 {[%emt 0:03:05]} 34. Qc8 {[%emt 0:02:02] Strongly threatening Rd7.} e3 {[%emt 0:04:04]} 35. fxe3 {[%emt 0:00:06]} Rxe3 {[%emt 0:00:05]} 36. Rd7 {[%emt 0:01:51]} (36. Qxa6 Re2 $11) 36... Rxd7 {[%emt 0:00:11]} (36... Re1+ 37. Kh2 Rxd7 38. Qxd7+ Kh6) 37. Qxd7+ {[%emt 0:00:02][%mdl 4096] Endgame KQ-KRN} Kg6 {[%emt 0:00:06]} 38. Kf2 {[%emt 0:03:37] Prevents Rg3.} Re4 {[%emt 0:03:07]} (38... Re5 $142 39. Qd3+ (39. Qxc7 Rf5+ 40. Kg1 Rd5 $18) 39... Rf5+ 40. Kg1 g4 41. Qxa6 Rd5) 39. Qd3 {[%emt 0:01:29]} f5 {[%emt 0:03:06]} 40. g3 {[%emt 0:00:54]} Kh5 {[%emt 0:02:23]} 41. gxh4 {[%emt 0:33:29]} Rxh4 {[%emt 0:30:06]} 42. Qxf5 $2 {[%emt 0:06:40]} (42. Qe2+ $18 Rg4 43. Qxa6) 42... Rf4+ $16 {[%emt 0:00:10] [#]} 43. Qxf4 $3 {[%emt 0:00:00][%mdl 512]} gxf4 {[%emt 0:00:05] K3P-K3P} 44. b4 {[%emt 0:00:00]} (44. Kf3 $6 Kg5 $11) 44... Kg5 {[%emt 0:00:09]} (44... Kg4 $2 45. a4 c6 46. c4 $18) 45. a4 {[%emt 0:00:00] a5 would kill now.} (45. Kf3 $6 Kf5 $11) 45... Kf5 $2 {[%emt 0:00:05][%mdl 8192]} (45... Kg4 46. a5 c6 47. c4 Kf5 48. b5 axb5 49. cxb5 cxb5 50. a6) (45... c6 $16) 46. a5 $2 {[%emt 0:00:00]} (46. Kf3 Ke5 $11) (46. b5 $1 {mates} a5 47. c4 (47. Kf3 $2 Ke5 $19) 47... Ke6 48. c5 (48. Kf3 $2 Kd6 $19) 48... Ke7 49. c6 Kd6 50. Kf3 Kc5 51. Kxf4) 46... c6 {[%emt 0:03:48]} 47. c4 {[%emt 0:00:00][%cal Ob4b5,Bc3c4,Bc4b5,Bb5b6][%mdl 32] White wants to mate with b5!} (47. Kf3 Ke6 48. c4 (48. Kxf4 Kd5 $11) 48... Kd6 49. Kxf4 Ke7 $18) 47... Ke5 {[%emt 0:00:43]} 48. b5 {[%emt 0:00:00]} ({Don't do} 48. Kf3 Ke6 49. b5 cxb5 50. cxb5 Kd6 $18) 48... cxb5 {[%emt 0:00:03]} 49. cxb5 {[%emt 0:00:00] KPP-KPP} Kd6 {[%emt 0:00:06] [#]} (49... axb5 $2 50. a6 Kf5 51. a7 Ke5 52. a8=Q Kd4 53. Kf3 b4 54. Kxf4) 50. b6 {[%emt 0:00:00]} ({Weaker is} 50. bxa6 Kc7 $11) 50... Kc6 {[%emt 0:00:04]} 51. Kf3 {[%emt 0:00:00]} Kb7 {[%emt 0:00:04]} 52. Kxf4 {[%emt 0:00:00] KPP-KP} Kc6 {[%emt 0:00:18] [#]} 53. Ke5 $1 {[%emt 0:00:17]} Kb7 {[%emt 0:00:08]} 54. Kd6 {[%emt 0:01:58]} Kb8 {[%emt 0:00:39]} 55. Kc6 {[%emt 0:00:02]} Kc8 {[%emt 0:00:30]} 56. Kd6 {[%emt 0:01:02]} Kb8 $1 {[%emt 0:00:08]} 57. Kd7 {[%emt 0:00:03]} ({But not} 57. Kc6 Kc8 58. Kd5 Kb7) 57... Kb7 {[%emt 0:00:06]} 58. Kd6 $2 {[%emt 0:00:11] Weighted Error Value: White=0.48/Black=0.35} (58. Ke7 $16) 1/2-1/2

[Event "1st Sales Oliveira Masters 2022"]
[Site "Sales Oliveira"]
[Date "2022.06.10"]
[Round "4.5"]
[White "Born, Carlos Rodrigo"]
[Black "Lima, Darcy"]
[Result "1-0"]
[ECO "B06"]
[WhiteElo "2292"]
[BlackElo "2488"]
[Annotator "TA"]
[PlyCount "125"]
[EventDate "2022.05.30"]
[EventType "swiss"]
[EventCountry "BRA"]
[SourceTitle "playchess.com"]
[Source "ChessBase"]
[SourceQuality "1"]
[TimeControl "40/5400+30:1800+30"]

{[%evp 11,125,47,61,39,46,34,36,18,27,31,33,21,51,31,30,30,40,28,32,35,40,34,36,37,47,43,38,43,43,22,50,43,47,42,73,66,61,0,0,0,0,0,0,0,0,-75,-70,-126,18,-9,-14,-25,-16,-8,29,0,0,0,0,0,0,-6,-6,-6,-6,-6,-6,-11,0,0,0,0,0,-11,0,0,0,-9,0,-29,-17,-91,-90,-225,-211,-233,-226,-226,-226,-206,-219,-220,-202,-206,-218,-236,-209,-209,-205,-166,0,0,0,0,0,0,0,0,88,83,83,84,744,743,5297,1894]} 1. Nf3 {[%emt 0:00:06]} g6 {[%emt 0:01:43]} 2. e4 {[%emt 0:00:41]} d6 {[%emt 0:02:38]} 3. d4 {[%emt 0:00:05]} Bg7 {[%emt 0:00:26]} 4. Nc3 {[%emt 0:00:32]} a6 {[%emt 0:00:21]} 5. a4 {[%emt 0:00:09]} b6 {[%emt 0:00:23]} 6. Bc4 {[%emt 0:02:58]} e6 {[%emt 0:00:07]} 7. Bg5 {[%emt 0:00:54] White is more active. B06: Modern Defence.} Ne7 {[%emt 0:00:27][%cal Bg8e7,Be7g6,Bg6f4][%mdl 32]} 8. Qd2 {[%emt 0:00:12]} h6 {[%emt 0:00:14]} 9. Bf4 {[%emt 0:01:13][%cal Bg5f4,Bf4g3,Bg3f2,Bf2e3][%mdl 32] White is slightly better.} Nd7 {[%emt 0:02:13]} 10. Rd1 {[%emt 0:07:14]} Bb7 {[%emt 0:01:29]} 11. O-O {[%emt 0:13:36]} g5 {[%emt 0:04:03]} 12. Bg3 {[%emt 0:00:56]} Ng6 {[%emt 0:00:12] [#]} 13. d5 $146 {[%emt 0:09:44]} ({Predecessor:} 13. h3 Nf6 14. e5 Nh5 15. exd6 cxd6 16. d5 e5 17. Bd3 Ngf4 18. Bxf4 Nxf4 19. Bf5 {0-1 (40) Estrada Nieto,J (2280)-Gislason,G (2308) Chess.com INT 2020}) 13... e5 {[%emt 0:03:57]} 14. Ne1 {[%emt 0:00:39]} h5 {[%emt 0:08:22] Hoping for ...h4.} 15. f3 $1 {[%emt 0:00:13]} Nf4 {[%emt 0:04:04]} 16. Bf2 {[%emt 0:00:33]} h4 {[%emt 0:02:59]} 17. Be3 {[%emt 0:01:56]} Qf6 {[%emt 0:00:12]} 18. Nd3 {[%emt 0:00:24]} Qg6 {[%emt 0:04:55]} 19. Nf2 {[%emt 0:01:53]} (19. Bxf4 exf4 20. h3 Bd4+ 21. Kh1 Be3 $11) 19... Nf6 {[%emt 0:07:53]} 20. Ng4 {[%emt 0:08:56]} N6h5 {[%emt 0:06:14]} 21. Rfe1 {[%emt 0:15:06]} Bc8 {[%emt 0:04:06]} 22. h3 {[%emt 0:04:20]} f5 {[%emt 0:05:51]} 23. exf5 {[%emt 0:00:30]} Bxf5 {[%emt 0:00:05]} 24. Nf2 {[%emt 0:00:10]} (24. Bxf4 $14 gxf4 25. Bd3) 24... Bxc2 $11 {[%emt 0:01:37]} 25. Rc1 {[%emt 0:00:30]} Bf5 {[%emt 0:00:04]} 26. Bf1 {[%emt 0:00:27]} O-O {[%emt 0:03:21]} 27. Nce4 {[%emt 0:00:22]} Rf7 {[%emt 0:00:20]} 28. Rc4 {[%emt 0:00:14]} (28. a5 $11) 28... c5 $1 $17 {[%emt 0:01:09]} 29. b4 {[%emt 0:06:25]} ({White should play} 29. Rcc1 $15) 29... Rd7 {[%emt 0:11:46]} (29... b5 $1 $17 {[%cal Rb5c4]} 30. Rc2 c4) 30. Rcc1 {[%emt 0:01:28][%cal Bc4c1,Bc1b1,Bb1b6,Bb6c6][%mdl 32]} a5 {[%emt 0:02:54]} 31. bxa5 {[%emt 0:00:33]} bxa5 {[%emt 0:00:43]} (31... Rxa5 32. Rb1 $16) 32. Rb1 {[%emt 0:00:03]} Nf6 {[%emt 0:01:40]} 33. Nxf6+ {[%emt 0:03:00]} (33. Bxf4 $5 Bxe4 34. Nxe4 Nxe4 35. Rxe4 gxf4 36. Rb5 $11) 33... Bxf6 {[%emt 0:00:54]} 34. Rb6 {[%emt 0:00:10]} Bd8 {[%emt 0:00:29]} 35. Rc6 {[%emt 0:00:02]} Qf7 {[%emt 0:00:56]} 36. Bxf4 {[%emt 0:00:40]} gxf4 {[%emt 0:00:38]} 37. Ne4 {[%emt 0:00:59]} Bxe4 {[%emt 0:01:00]} 38. Rxe4 {[%emt 0:00:02]} Rb8 {[%emt 0:00:21]} 39. Bb5 {[%emt 0:00:03]} Bb6 {[%emt 0:04:21]} 40. Rc4 {[%emt 0:03:12]} Rdd8 {[%emt 0:00:47][%cal Bd7d8,Bd8g8,Bg8g3,Bg3g7,Bg7e7,Be7e3][%mdl 32]} 41. Kf1 {[%emt 0:30:24]} Kh8 {[%emt 0:32:47]} 42. Re4 {[%emt 0:01:17]} Qf6 {[%emt 0:00:20]} 43. Re1 {[%emt 0:05:07]} Rg8 {[%emt 0:01:24]} 44. Qf2 {[%emt 0:01:02]} Rg3 {[%emt 0:01:13]} 45. Re4 {[%emt 0:03:03]} Rg7 {[%emt 0:02:26]} 46. Rc4 {[%emt 0:01:29]} (46. Re1 $11 {remains equal.}) 46... Ba7 {[%emt 0:00:46] And now ...Rbg8 would win.} 47. Qe1 {[%emt 0:02:03]} (47. Qb2 $17 {was forced.}) 47... Rbg8 $1 $19 {[%emt 0:03:05]} ({Worse is} 47... Qg6 48. Qxh4+ Kg8 49. Qf2 $15) 48. Rc2 {[%emt 0:00:05]} e4 $1 {[%emt 0:03:08]} 49. Qxe4 {[%emt 0:05:44]} Re7 {[%emt 0:00:11]} 50. Qc4 {[%emt 0:00:55]} Re3 {[%emt 0:01:44] Prevents Qc3.} ({Less strong is} 50... Qe5 51. Qc3 $14) 51. Rc7 {[%emt 0:00:19]} Bb6 {[%emt 0:00:32]} 52. Rb7 {[%emt 0:00:14]} Bd8 {[%emt 0:01:26]} 53. Rc1 {[%emt 0:00:37]} Qg5 {[%emt 0:00:50][%csl Gg8][%cal Rg5g2]} 54. Qc2 {[%emt 0:01:01][%csl Gc2][%cal Rb7h7] [#]} Rxf3+ $3 {[%emt 0:00:49][%mdl 512]} 55. Kg1 {[%emt 0:00:01][%csl Gb7][%cal Rc2h7] [#]} (55. gxf3 $2 {leads to mate.} Qg1+ 56. Ke2 Rg2+ 57. Kd3 Qd4#) 55... Be7 $2 {[%emt 0:00:07]} (55... Rg7 $1 $19 {[%cal Rg7b7]} 56. Rxg7 Kxg7) 56. Re1 $40 {[%emt 0:00:45][%mdl 128] White is up to no good. Really sharp!} Re3 {[%emt 0:01:10]} 57. Rxe3 {[%emt 0:00:18]} fxe3 {[%emt 0:00:01]} 58. Qe4 {[%emt 0:00:05]} Rg7 {[%emt 0:00:37]} 59. Rb8+ {[%emt 0:00:34]} Rg8 {[%emt 0:00:14] [#]} (59... Bd8 $1 $11) 60. Bd3 $1 $16 {[%emt 0:01:01][%csl Gd3][%cal Re4h7]} Qg7 {[%emt 0:00:07] Against Qh7+} 61. Rb7 {[%emt 0:00:12]} e2 $2 {[%emt 0:00:45][%mdl 8192]} (61... Re8 $16) 62. Qxe2 $18 {[%emt 0:00:24] Threatening mate with Qh5+.} Qd4+ {[%emt 0:01:07]} 63. Kh1 {[%emt 0:00:14] What a bad dream for Black.  Weighted Error Value: White=0.13 (very precise) /Black=0.14 (very precise)} 1-0